{"text_format":"1","workbook":"xlsx","n_sheets":4,"sheets":["tpcs","anyls","pts","sts"],"not_rendered":{"charts":0,"images":3,"macros":1,"external_links":0,"defined_names":5,"comments":0,"pivot_tables":0},"unopened":[],"bounds":{"document_bytes":16777216,"sheet_cells":100000,"rows_first":2000,"rows_last":500,"rows_between":2000,"halvings":0,"cell_chars":16384,"cell_head_chars":4096},"cells_cut":0,"cells_raw":0,"read":"whole","date_system":"1900"}

{"sheet":"tpcs","index":0,"n_rows":31,"n_cols":9,"rows_kept":31,"cut":false,"hidden":false,"merged":[]}
[]
["وكالة الغوث الدولية"]
["دائرة التربيـة والتعليـم"]
["منطقـة الزرقـاء "]
["المدرسة :",null,null,null,null,null,"الصف و الشعبة :",null,"الرابع  "]
["م","مواضيع الاختبار"]
[1,"القراءة الاستيعابية ",null,null,null,null,26]
[2,"القراءة الاستيعابية ",null,null,null,null,27]
[3,"القراءة الاستيعابية ",null,null,null,null,28]
[4,"القراءة الاستيعابية ",null,null,null,null,29]
[5,"القراءة الاستيعابية ",null,null,null,null,30]
[6,"القراءة الاستيعابية ",null,null,null,null,31]
[7,"تمييز أقسام الكلام ",null,null,null,null,32]
[8,"التمييز بين اللام الشمسية واللام القمرية ",null,null,null,null,33]
[9,"كتابة الألف اللينة في نهاية الكلمات ",null,null,null,null,34]
[10,"كتابة التنوين  ",null,null,null,null,35]
[11,"كتابة الشدة ",null,null,null,null,36]
[12,"صياغة الاستفهام",null,null,null,null,37]
[13,"التمييز لبن همزتا الوصل والقطع ",null,null,null,null,38]
[14,"التمييز بين التاء المربوطة والتاء المبسوطة ",null,null,null,null,39]
[15,"صياغة الجمع والمفرد",null,null,null,null,40]
[16,"ترتيب الكلمات المبعثرة لتؤلف جملة مفيدة",null,null,null,null,41]
[17,null,null,null,null,null,42]
[18,null,null,null,null,null,43]
[19,null,null,null,null,null,44]
[20,null,null,null,null,null,45]
[21,null,null,null,null,null,46]
[22,null,null,null,null,null,47]
[23,null,null,null,null,null,48]
[24,null,null,null,null,null,49]
[25,null,null,null,null,null,50]

{"sheet":"anyls","index":1,"n_rows":63,"n_cols":52,"rows_kept":63,"cut":false,"hidden":false,"merged":[[6,2,6,5]]}
[]
["وكالة الغوث الدولية"]
["دائرة التربيـة والتعليـم"]
["منطقـة الزرقـاء "]
["تحليل نتائج الاختبار التشخيصي "]
["المدرسة :",null,{"$f":"tpcs!C5","v":0},null,null,null,null,null,null,null,null,null,null,null,null,null,null,null,null,null,null,null,null,null,null,null,null,null,null,null,null,null,null,null,null,null,null,null,null,null,null,null,null,null,null,null,null,"الصف :",null,null,null,{"$f":"tpcs!I5","v":"الرابع  "}]
[null,null,"فقرات الاختبار",null,null,null,null,null,null,null,null,null,null,null,null,null,null,null,null,null,null,null,null,null,null,null,null,null,null,null,null,null,null,null,null,null,null,null,null,null,null,null,null,null,null,null,null,null,null,null,null,"علامة الطالب"]
["م","اسم الطالب ( مقطعين)",1,2,3,4,5,6,7,8,9,10,11,12,13,14,15,16,17,18,19,20,21,22,23,24,25,26,27,28,29,30,31,32,33,34,35,36,37,38,39,40,41,42,43,44,45,46,47,48,49]
[1," ابراهيم جمال سناجرة ",null,null,0,1,0,0,1,0,1,0,1,0,0,1,0,1,0,0,0,null,null,null,null,null,null,null,null,null,null,null,null,null,null,null,null,null,null,null,null,null,null,null,null,null,null,null,null,null,null,{"$f":"COUNTIF(C9:AY9,1)/49","v":0.12244897959183673}]
[2," ابراهيم قاسم ابراهيم ابو رواع ",null,null,1,1,1,0,0,1,1,1,1,0,1,1,1,1,1,1,1,null,null,null,null,null,null,null,null,null,null,null,null,null,null,null,null,null,null,null,null,null,null,null,null,null,null,null,null,null,null,{"$f":"COUNTIF(C10:AY10,1)/49","v":0.2857142857142857}]
[3," احمد هاني محمد الجبارات ",null,null,1,0,1,1,0,0,0,1,1,0,0,1,0,0,0,0,0,null,null,null,null,null,null,null,null,null,null,null,null,null,null,null,null,null,null,null,null,null,null,null,null,null,null,null,null,null,null,{"$f":"COUNTIF(C11:AY11,1)/49","v":0.12244897959183673}]
[4," ادم بسام حلمي حسين ",null,null,1,1,1,0,0,0,0,0,1,1,1,0,0,0,0,0,0,null,null,null,null,null,null,null,null,null,null,null,null,null,null,null,null,null,null,null,null,null,null,null,null,null,null,null,null,null,null,0.12244897959183673]
[5," ادم وجدي اسماعيل شعافين ",null,null,0,0,0,1,0,1,0,1,0,0,1,1,0,0,1,1,1,null,null,null,null,null,null,null,null,null,null,null,null,null,null,null,null,null,null,null,null,null,null,null,null,null,null,null,null,null,null,0.16326530612244897]
[6," اصيل خليل راتب حميدان ",null,null,1,1,1,1,1,1,1,0,1,1,1,0,1,1,1,1,1,null,null,null,null,null,null,null,null,null,null,null,null,null,null,null,null,null,null,null,null,null,null,null,null,null,null,null,null,null,null,0.30612244897959184]
[7," المعتصم مصطفى محمد الحسيني ",null,null,0,1,0,1,0,0,0,0,0,0,1,0,0,1,0,0,0,null,null,null,null,null,null,null,null,null,null,null,null,null,null,null,null,null,null,null,null,null,null,null,null,null,null,null,null,null,null,8.1632653061224483E-2]
[8," تيم عبدالله \"عزات فريد\" ابو حديد ",null,null,1,1,1,1,0,1,1,0,1,1,0,1,1,0,1,0,0,null,null,null,null,null,null,null,null,null,null,null,null,null,null,null,null,null,null,null,null,null,null,null,null,null,null,null,null,null,null,0.22448979591836735]
[9," جاد مصطفى فرج ابو الفول ",null,null,1,1,1,1,1,1,1,1,1,1,1,0,1,1,1,1,1,null,null,null,null,null,null,null,null,null,null,null,null,null,null,null,null,null,null,null,null,null,null,null,null,null,null,null,null,null,null,0.32653061224489793]
[10," جواد اسامة نواف الراعي ",null,null,1,0,0,0,0,0,0,0,0,0,0,0,0,0,0,0,0,null,null,null,null,null,null,null,null,null,null,null,null,null,null,null,null,null,null,null,null,null,null,null,null,null,null,null,null,null,null,2.0408163265306121E-2]
[11," جواد خالد سلامة ابو زيتون ",null,null,0,1,0,0,0,0,0,0,0,0,0,0,0,0,0,0,0,null,null,null,null,null,null,null,null,null,null,null,null,null,null,null,null,null,null,null,null,null,null,null,null,null,null,null,null,null,null,2.0408163265306121E-2]
[12," حمزة ابراهيم علي ابو ورده ",null,null,1,1,0,0,0,0,0,0,0,0,1,0,0,0,0,0,0,null,null,null,null,null,null,null,null,null,null,null,null,null,null,null,null,null,null,null,null,null,null,null,null,null,null,null,null,null,null,6.1224489795918366E-2]
[13," حمزة احمد محمود غنايم ",null,null,1,1,1,1,1,1,1,1,1,1,1,1,1,1,1,1,1,null,null,null,null,null,null,null,null,null,null,null,null,null,null,null,null,null,null,null,null,null,null,null,null,null,null,null,null,null,null,0.34693877551020408]
[14," حمزة ياسر سليمان ابو صالح ",null,null,1,1,1,0,1,0,0,0,1,0,1,0,0,0,1,0,0,null,null,null,null,null,null,null,null,null,null,null,null,null,null,null,null,null,null,null,null,null,null,null,null,null,null,null,null,null,null,0.14285714285714285]
[15," خلف علي احمد ابو ديه ",null,null,1,1,1,1,0,0,1,1,0,0,1,0,1,0,1,0,0,null,null,null,null,null,null,null,null,null,null,null,null,null,null,null,null,null,null,null,null,null,null,null,null,null,null,null,null,null,null,0.18367346938775511]
[16," راشد محمد احمد العيسه ",null,null,1,0,1,0,1,1,1,1,0,0,1,1,0,1,1,1,1,null,null,null,null,null,null,null,null,null,null,null,null,null,null,null,null,null,null,null,null,null,null,null,null,null,null,null,null,null,null,0.24489795918367346]
[17," سند علي محمد الجدعان ",null,null,1,1,1,1,0,1,0,0,0,0,0,1,1,1,1,1,1,null,null,null,null,null,null,null,null,null,null,null,null,null,null,null,null,null,null,null,null,null,null,null,null,null,null,null,null,null,null,0.22448979591836735]
[18," \"صلاح الدين\" وليد حسن الاعرج ",null,null,1,1,1,1,1,1,1,1,1,1,1,1,1,1,1,1,1,null,null,null,null,null,null,null,null,null,null,null,null,null,null,null,null,null,null,null,null,null,null,null,null,null,null,null,null,null,null,0.34693877551020408]
[19," صهيب جمعة حسين بطاح ",null,null,0,1,0,0,0,0,0,0,0,0,0,0,0,0,0,0,0,null,null,null,null,null,null,null,null,null,null,null,null,null,null,null,null,null,null,null,null,null,null,null,null,null,null,null,null,null,null,2.0408163265306121E-2]
[20," طارق ربيع انور صبح ",null,null,1,0,0,1,0,0,0,0,0,0,0,0,0,0,0,0,0,null,null,null,null,null,null,null,null,null,null,null,null,null,null,null,null,null,null,null,null,null,null,null,null,null,null,null,null,null,null,4.0816326530612242E-2]
[21," عبد الرحمن علي ابراهيم نشوان ",null,null,1,1,1,1,1,1,1,1,1,1,1,1,1,1,1,1,1,null,null,null,null,null,null,null,null,null,null,null,null,null,null,null,null,null,null,null,null,null,null,null,null,null,null,null,null,null,null,0.34693877551020408]
[22," عبد الرحمن محمد جميل ياسين ",null,null,1,0,0,0,0,0,0,0,0,0,0,0,0,0,0,0,0,null,null,null,null,null,null,null,null,null,null,null,null,null,null,null,null,null,null,null,null,null,null,null,null,null,null,null,null,null,null,2.0408163265306121E-2]
[23," عبد القادر وليد محمد ابو اسعيد ",null,null,1,1,1,1,0,0,1,1,1,1,0,1,0,1,1,1,1,null,null,null,null,null,null,null,null,null,null,null,null,null,null,null,null,null,null,null,null,null,null,null,null,null,null,null,null,null,null,0.26530612244897961]
[24," عبد المالك علي محمد ابو ناموس ",null,null,1,0,0,0,0,0,0,0,0,0,0,0,0,0,0,0,0,null,null,null,null,null,null,null,null,null,null,null,null,null,null,null,null,null,null,null,null,null,null,null,null,null,null,null,null,null,null,2.0408163265306121E-2]
[25," عبدالله مجدي عايش سراديح ",null,null,0,0,0,0,0,0,0,0,0,0,0,0,0,0,0,0,0,null,null,null,null,null,null,null,null,null,null,null,null,null,null,null,null,null,null,null,null,null,null,null,null,null,null,null,null,null,null,0]
[26," \"عز الدين\" اياد محمد الدقس ",null,null,1,1,1,1,1,1,1,1,1,1,1,1,1,1,1,1,1,null,null,null,null,null,null,null,null,null,null,null,null,null,null,null,null,null,null,null,null,null,null,null,null,null,null,null,null,null,null,0.34693877551020408]
[27," عمار باسم طافش شاويش ",null,null,1,0,1,0,1,0,0,1,1,0,1,0,1,0,1,0,0,null,null,null,null,null,null,null,null,null,null,null,null,null,null,null,null,null,null,null,null,null,null,null,null,null,null,null,null,null,null,0.16326530612244897]
[28," غسان محمد سميح الدبس ",null,null,1,0,0,0,0,0,0,0,0,0,0,0,0,0,0,0,0,null,null,null,null,null,null,null,null,null,null,null,null,null,null,null,null,null,null,null,null,null,null,null,null,null,null,null,null,null,null,2.0408163265306121E-2]
[29," قيس محمد راغب عرار ",null,null,0,0,0,0,0,0,0,0,0,0,0,0,0,0,0,0,0,null,null,null,null,null,null,null,null,null,null,null,null,null,null,null,null,null,null,null,null,null,null,null,null,null,null,null,null,null,null,0]
[30," كرم علي عوده الذيابات ",null,null,1,0,0,0,0,0,0,1,0,0,0,0,0,1,0,0,0,null,null,null,null,null,null,null,null,null,null,null,null,null,null,null,null,null,null,null,null,null,null,null,null,null,null,null,null,null,null,6.1224489795918366E-2]
[31," لؤي سلطان ذياب الربيعي ",null,null,1,1,0,0,0,0,0,0,0,0,0,0,0,0,0,0,0,null,null,null,null,null,null,null,null,null,null,null,null,null,null,null,null,null,null,null,null,null,null,null,null,null,null,null,null,null,null,4.0816326530612242E-2]
[32," ليث \"محي الدين\" شحادة الطلاع ",null,null,1,1,1,0,0,0,0,0,0,0,0,0,0,0,0,0,0,null,null,null,null,null,null,null,null,null,null,null,null,null,null,null,null,null,null,null,null,null,null,null,null,null,null,null,null,null,null,6.1224489795918366E-2]
[33," مؤيد علاء عبدالله عبدالسميع حمادة ",null,null,1,1,1,1,1,0,0,0,0,0,0,0,0,1,0,0,0,null,null,null,null,null,null,null,null,null,null,null,null,null,null,null,null,null,null,null,null,null,null,null,null,null,null,null,null,null,null,0.12244897959183673]
[34," محمد خضر محمد ابو حمده ",null,null,1,0,1,1,0,0,1,1,1,0,1,1,1,1,1,1,1,null,null,null,null,null,null,null,null,null,null,null,null,null,null,null,null,null,null,null,null,null,null,null,null,null,null,null,null,null,null,0.26530612244897961]
[35," محمد سلمان علي ابو كاشف ",null,null,1,0,0,0,0,0,0,0,0,0,0,0,0,0,0,0,0,null,null,null,null,null,null,null,null,null,null,null,null,null,null,null,null,null,null,null,null,null,null,null,null,null,null,null,null,null,null,2.0408163265306121E-2]
[36," محمد شريف سليمان سلامه ",null,null,1,1,1,1,1,1,1,0,0,0,1,1,1,1,1,1,1,null,null,null,null,null,null,null,null,null,null,null,null,null,null,null,null,null,null,null,null,null,null,null,null,null,null,null,null,null,null,0.2857142857142857]
[37," محمد عبد القادر محمد الدقس ",null,null,1,1,1,1,1,1,1,1,1,1,1,1,1,1,1,1,1,null,null,null,null,null,null,null,null,null,null,null,null,null,null,null,null,null,null,null,null,null,null,null,null,null,null,null,null,null,null,0.34693877551020408]
[38," محمد فراس محمود عقل ",null,null,1,1,1,1,1,1,1,1,1,1,1,1,1,1,1,1,1,null,null,null,null,null,null,null,null,null,null,null,null,null,null,null,null,null,null,null,null,null,null,null,null,null,null,null,null,null,null,0.34693877551020408]
[39," محمد مراد محمد الوحيدي ",null,null,1,1,0,1,1,1,1,1,1,1,1,1,1,1,1,1,1,null,null,null,null,null,null,null,null,null,null,null,null,null,null,null,null,null,null,null,null,null,null,null,null,null,null,null,null,null,null,0.32653061224489793]
[40," محمود عيسى حسن عواد ",null,null,0,0,0,0,0,0,0,0,0,0,0,0,0,0,0,0,0,null,null,null,null,null,null,null,null,null,null,null,null,null,null,null,null,null,null,null,null,null,null,null,null,null,null,null,null,null,null,0]
[41," مصطفى رائد مصطفى غانم ",null,null,1,0,1,0,1,1,1,1,1,0,0,0,0,1,0,0,0,null,null,null,null,null,null,null,null,null,null,null,null,null,null,null,null,null,null,null,null,null,null,null,null,null,null,null,null,null,null,0.16326530612244897]
[42," مهند محمد محمود وشاح ",null,null,1,1,0,0,0,0,0,0,0,0,0,0,0,0,0,0,0,null,null,null,null,null,null,null,null,null,null,null,null,null,null,null,null,null,null,null,null,null,null,null,null,null,null,null,null,null,null,4.0816326530612242E-2]
[43," مهند نضال ابراهيم شحاده ",null,null,1,0,1,1,0,0,0,0,0,0,0,0,0,0,0,0,0,null,null,null,null,null,null,null,null,null,null,null,null,null,null,null,null,null,null,null,null,null,null,null,null,null,null,null,null,null,null,6.1224489795918366E-2]
[44," موسى علاء موسى رباع ",null,null,0,0,0,0,0,0,0,0,0,0,0,0,0,0,0,0,0,null,null,null,null,null,null,null,null,null,null,null,null,null,null,null,null,null,null,null,null,null,null,null,null,null,null,null,null,null,null,0]
[45," وسيم يحيى ابراهيم الراعي ",null,null,1,0,0,0,0,0,0,0,0,0,0,0,0,0,0,0,0,null,null,null,null,null,null,null,null,null,null,null,null,null,null,null,null,null,null,null,null,null,null,null,null,null,null,null,null,null,null,2.0408163265306121E-2]
[46," يزيد عبد الرحمن محمد الدقس ",null,null,1,0,0,0,0,0,0,0,0,0,0,0,0,0,0,0,0,null,null,null,null,null,null,null,null,null,null,null,null,null,null,null,null,null,null,null,null,null,null,null,null,null,null,null,null,null,null,2.0408163265306121E-2]
[47," يزيد فايز رفيق شاهين ",null,null,1,0,0,0,0,0,0,0,0,0,0,0,0,0,0,0,0,null,null,null,null,null,null,null,null,null,null,null,null,null,null,null,null,null,null,null,null,null,null,null,null,null,null,null,null,null,null,2.0408163265306121E-2]
[48," يوسف جمال احمد يونس ",null,null,1,0,0,0,0,0,0,0,0,0,0,0,0,0,0,0,0,null,null,null,null,null,null,null,null,null,null,null,null,null,null,null,null,null,null,null,null,null,null,null,null,null,null,null,null,null,null,2.0408163265306121E-2]
[49," يوسف محمود هديب هديب ",null,null,0,0,0,0,0,0,0,0,0,0,0,0,0,0,0,0,0,null,null,null,null,null,null,null,null,null,null,null,null,null,null,null,null,null,null,null,null,null,null,null,null,null,null,null,null,null,null,0]
[50,null,null,null,null,null,null,null,null,null,null,null,null,null,null,null,null,null,null,null,null,null,null,null,null,null,null,null,null,null,null,null,null,null,null,null,null,null,null,null,null,null,null,null,null,null,null,null,null,null,null,{"$f":"COUNTIF(C58:AY58,1)/49","v":0}]
["عدد الاجابات الصحيحة",null,{"$f":"COUNTIF(C9:C58,1)","v":0},{"$f":"COUNTIF(D9:D58,1)","v":0},39,26,24,21,16,16,18,18,19,12,20,17,16,20,20,16,16,0,0,0,0,0,0,0,0,0,0,0,0,0,0,0,0,0,0,0,0,0,0,0,0,0,0,0,0,0,0,{"$f":"COUNTIF(AZ9:AZ58,\">=0.5\")","v":0}]
["نسبة النجاح %",null,{"$f":"IFERROR(COUNTIF(C9:C58,1)/COUNTA(C9:C58),\"\")","v":""},{"$f":"IFERROR(COUNTIF(D9:D58,1)/COUNTA(D9:D58),\"\")","v":""},0.79591836734693877,0.53061224489795922,0.48979591836734693,0.42857142857142855,0.32653061224489793,0.32653061224489793,0.36734693877551022,0.36734693877551022,0.38775510204081631,0.24489795918367346,0.40816326530612246,0.34693877551020408,0.32653061224489793,0.40816326530612246,0.40816326530612246,0.32653061224489793,0.32653061224489793,"","","","","","","","","","","","","","","","","","","","","","","","","","","","","","",{"$f":"COUNTIF(AZ9:AZ58,\">=0.5\")/COUNTA(B9:B58)","v":0}]
[]
[null,"نسبة النجاح للشعبة",{"$f":"AZ60","v":0}]
[null,"متوسط الاداء",{"$f":"SUM(AZ9:AZ58)/COUNTA(B9:B58)","v":0.13910870470637232}]

{"sheet":"pts","index":2,"n_rows":57,"n_cols":3,"rows_kept":57,"cut":false,"hidden":false,"merged":[[0,3,3023,30]]}
[]
["وكالة الغوث الدولية"]
["دائرة التربيـة والتعليـم"]
["منطقـة الزرقـاء"]
[" ","المـــــدرسة :",{"$f":"tpcs!C5","v":0}]
["الصــــــف :",null,{"$f":"tpcs!I5","v":"الرابع  "}]
["م","مواضيع الاختبار","اسماء الطلبة ضعاف التحصيل"]
[1,{"$f":"tpcs!B7","v":"القراءة الاستيعابية "}," -  ابراهيم جمال سناجرة  -  ادم وجدي اسماعيل شعافين  -  المعتصم مصطفى محمد الحسيني  -  جواد خالد سلامة ابو زيتون  -  صهيب جمعة حسين بطاح  -  عبدالله مجدي عايش سراديح  -  قيس محمد راغب عرار  -  محمود عيسى حسن عواد  -  موسى علاء موسى رباع  -  يوسف محمود هديب هديب "]
[2,{"$f":"tpcs!B8","v":"القراءة الاستيعابية "}," -  احمد هاني محمد الجبارات  -  ادم وجدي اسماعيل شعافين  -  جواد اسامة نواف الراعي  -  راشد محمد احمد العيسه  -  طارق ربيع انور صبح  -  عبد الرحمن محمد جميل ياسين  -  عبد المالك علي محمد ابو ناموس  -  عبدالله مجدي عايش سراديح  -  عمار باسم طافش شاويش  -  غسان محمد سميح الدبس  -  قيس محمد راغب عرار  -  كرم علي عوده الذيابات  -  محمد خضر محمد ابو حمده  -  محمد سلمان علي ابو كاشف  -  محمود عيسى حسن عواد  -  مصطفى رائد مصطفى غانم  -  مهند نضال ابراهيم شحاده  -  موسى علاء موسى رباع  -  وسيم يحيى ابراهيم الراعي  -  يزيد عبد الرحمن محمد الدقس  -  يزيد فايز رفيق شاهين  -  يوسف جمال احمد يونس  -  يوسف محمود هديب هديب "]
[3,{"$f":"tpcs!B9","v":"القراءة الاستيعابية "}," -  ابراهيم جمال سناجرة  -  ادم وجدي اسماعيل شعافين  -  المعتصم مصطفى محمد الحسيني  -  جواد اسامة نواف الراعي  -  جواد خالد سلامة ابو زيتون  -  حمزة ابراهيم علي ابو ورده  -  صهيب جمعة حسين بطاح  -  طارق ربيع انور صبح  -  عبد الرحمن محمد جميل ياسين  -  عبد المالك علي محمد ابو ناموس  -  عبدالله مجدي عايش سراديح  -  غسان محمد سميح الدبس  -  قيس محمد راغب عرار  -  كرم علي عوده الذيابات  -  لؤي سلطان ذياب الربيعي  -  محمد سلمان علي ابو كاشف  -  محمد مراد محمد الوحيدي  -  محمود عيسى حسن عواد  -  مهند محمد محمود وشاح  -  موسى علاء موسى رباع  -  وسيم يحيى ابراهيم الراعي  -  يزيد عبد الرحمن محمد الدقس  -  يزيد فايز رفيق شاهين  -  يوسف جمال احمد يونس  -  يوسف محمود هديب هديب "]
[4,{"$f":"tpcs!B10","v":"القراءة الاستيعابية "}," -  ابراهيم جمال سناجرة  -  ابراهيم قاسم ابراهيم ابو رواع  -  ادم بسام حلمي حسين  -  جواد اسامة نواف الراعي  -  جواد خالد سلامة ابو زيتون  -  حمزة ابراهيم علي ابو ورده  -  حمزة ياسر سليمان ابو صالح  -  راشد محمد احمد العيسه  -  صهيب جمعة حسين بطاح  -  عبد الرحمن محمد جميل ياسين  -  عبد المالك علي محمد ابو ناموس  -  عبدالله مجدي عايش سراديح  -  عمار باسم طافش شاويش  -  غسان محمد سميح الدبس  -  قيس محمد راغب عرار  -  كرم علي عوده الذيابات  -  لؤي سلطان ذياب الربيعي  -  ليث \"محي الدين\" شحادة الطلاع  -  محمد سلمان علي ابو كاشف  -  محمود عيسى حسن عواد  -  مصطفى رائد مصطفى غانم  -  مهند محمد محمود وشاح  -  موسى علاء موسى رباع  -  وسيم يحيى ابراهيم الراعي  -  يزيد عبد الرحمن محمد الدقس  -  يزيد فايز رفيق شاهين  -  يوسف جمال احمد يونس  -  يوسف محمود هديب هديب "]
[5,{"$f":"tpcs!B11","v":"القراءة الاستيعابية "}," -  ابراهيم قاسم ابراهيم ابو رواع  -  احمد هاني محمد الجبارات  -  ادم بسام حلمي حسين  -  ادم وجدي اسماعيل شعافين  -  المعتصم مصطفى محمد الحسيني  -  تيم عبدالله \"عزات فريد\" ابو حديد  -  جواد اسامة نواف الراعي  -  جواد خالد سلامة ابو زيتون  -  حمزة ابراهيم علي ابو ورده  -  خلف علي احمد ابو ديه  -  سند علي محمد الجدعان  -  صهيب جمعة حسين بطاح  -  طارق ربيع انور صبح  -  عبد الرحمن محمد جميل ياسين  -  عبد القادر وليد محمد ابو اسعيد  -  عبد المالك علي محمد ابو ناموس  -  عبدالله مجدي عايش سراديح  -  غسان محمد سميح الدبس  -  قيس محمد راغب عرار  -  كرم علي عوده الذيابات  -  لؤي سلطان ذياب الربيعي  -  ليث \"محي الدين\" شحادة الطلاع  -  محمد خضر محمد ابو حمده  -  محمد سلمان علي ابو كاشف  -  محمود عيسى حسن عواد  -  مهند محمد محمود وشاح  -  مهند نضال ابراهيم شحاده  -  موسى علاء موسى رباع  -  وسيم يحيى ابراهيم الراعي  -  يزيد عبد الرحمن محمد الدقس  -  يزيد فايز رفيق شاهين  -  يوسف جمال احمد يونس  -  يوسف محمود هديب هديب "]
[6,{"$f":"tpcs!B12","v":"القراءة الاستيعابية "}," -  ابراهيم جمال سناجرة  -  احمد هاني محمد الجبارات  -  ادم بسام حلمي حسين  -  المعتصم مصطفى محمد الحسيني  -  جواد اسامة نواف الراعي  -  جواد خالد سلامة ابو زيتون  -  حمزة ابراهيم علي ابو ورده  -  حمزة ياسر سليمان ابو صالح  -  خلف علي احمد ابو ديه  -  صهيب جمعة حسين بطاح  -  طارق ربيع انور صبح  -  عبد الرحمن محمد جميل ياسين  -  عبد القادر وليد محمد ابو اسعيد  -  عبد المالك علي محمد ابو ناموس  -  عبدالله مجدي عايش سراديح  -  عمار باسم طافش شاويش  -  غسان محمد سميح الدبس  -  قيس محمد راغب عرار  -  كرم علي عوده الذيابات  -  لؤي سلطان ذياب الربيعي  -  ليث \"محي الدين\" شحادة الطلاع  -  مؤيد علاء عبدالله عبدالسميع حمادة  -  محمد خضر محمد ابو حمده  -  محمد سلمان علي ابو كاشف  -  محمود عيسى حسن عواد  -  مهند محمد محمود وشاح  -  مهند نضال ابراهيم شحاده  -  موسى علاء موسى رباع  -  وسيم يحيى ابراهيم الراعي  -  يزيد عبد الرحمن محمد الدقس  -  يزيد فايز رفيق شاهين  -  يوسف جمال احمد يونس  -  يوسف محمود هديب هديب "]
[7,{"$f":"tpcs!B13","v":"تمييز أقسام الكلام "}," -  احمد هاني محمد الجبارات  -  ادم بسام حلمي حسين  -  ادم وجدي اسماعيل شعافين  -  المعتصم مصطفى محمد الحسيني  -  جواد اسامة نواف الراعي  -  جواد خالد سلامة ابو زيتون  -  حمزة ابراهيم علي ابو ورده  -  حمزة ياسر سليمان ابو صالح  -  سند علي محمد الجدعان  -  صهيب جمعة حسين بطاح  -  طارق ربيع انور صبح  -  عبد الرحمن محمد جميل ياسين  -  عبد المالك علي محمد ابو ناموس  -  عبدالله مجدي عايش سراديح  -  عمار باسم طافش شاويش  -  غسان محمد سميح الدبس  -  قيس محمد راغب عرار  -  كرم علي عوده الذيابات  -  لؤي سلطان ذياب الربيعي  -  ليث \"محي الدين\" شحادة الطلاع  -  مؤيد علاء عبدالله عبدالسميع حمادة  -  محمد سلمان علي ابو كاشف  -  محمود عيسى حسن عواد  -  مهند محمد محمود وشاح  -  مهند نضال ابراهيم شحاده  -  موسى علاء موسى رباع  -  وسيم يحيى ابراهيم الراعي  -  يزيد عبد الرحمن محمد الدقس  -  يزيد فايز رفيق شاهين  -  يوسف جمال احمد يونس  -  يوسف محمود هديب هديب "]
[8,{"$f":"tpcs!B14","v":"التمييز بين اللام الشمسية واللام القمرية "}," -  ابراهيم جمال سناجرة  -  ادم بسام حلمي حسين  -  اصيل خليل راتب حميدان  -  المعتصم مصطفى محمد الحسيني  -  تيم عبدالله \"عزات فريد\" ابو حديد  -  جواد اسامة نواف الراعي  -  جواد خالد سلامة ابو زيتون  -  حمزة ابراهيم علي ابو ورده  -  حمزة ياسر سليمان ابو صالح  -  سند علي محمد الجدعان  -  صهيب جمعة حسين بطاح  -  طارق ربيع انور صبح  -  عبد الرحمن محمد جميل ياسين  -  عبد المالك علي محمد ابو ناموس  -  عبدالله مجدي عايش سراديح  -  غسان محمد سميح الدبس  -  قيس محمد راغب عرار  -  لؤي سلطان ذياب الربيعي  -  ليث \"محي الدين\" شحادة الطلاع  -  مؤيد علاء عبدالله عبدالسميع حمادة  -  محمد سلمان علي ابو كاشف  -  محمد شريف سليمان سلامه  -  محمود عيسى حسن عواد  -  مهند محمد محمود وشاح  -  مهند نضال ابراهيم شحاده  -  موسى علاء موسى رباع  -  وسيم يحيى ابراهيم الراعي  -  يزيد عبد الرحمن محمد الدقس  -  يزيد فايز رفيق شاهين  -  يوسف جمال احمد يونس  -  يوسف محمود هديب هديب "]
[9,{"$f":"tpcs!B15","v":"كتابة الألف اللينة في نهاية الكلمات "}," -  ادم وجدي اسماعيل شعافين  -  المعتصم مصطفى محمد الحسيني  -  جواد اسامة نواف الراعي  -  جواد خالد سلامة ابو زيتون  -  حمزة ابراهيم علي ابو ورده  -  خلف علي احمد ابو ديه  -  راشد محمد احمد العيسه  -  سند علي محمد الجدعان  -  صهيب جمعة حسين بطاح  -  طارق ربيع انور صبح  -  عبد الرحمن محمد جميل ياسين  -  عبد المالك علي محمد ابو ناموس  -  عبدالله مجدي عايش سراديح  -  غسان محمد سميح الدبس  -  قيس محمد راغب عرار  -  كرم علي عوده الذيابات  -  لؤي سلطان ذياب الربيعي  -  ليث \"محي الدين\" شحادة الطلاع  -  مؤيد علاء عبدالله عبدالسميع حمادة  -  محمد سلمان علي ابو كاشف  -  محمد شريف سليمان سلامه  -  محمود عيسى حسن عواد  -  مهند محمد محمود وشاح  -  مهند نضال ابراهيم شحاده  -  موسى علاء موسى رباع  -  وسيم يحيى ابراهيم الراعي  -  يزيد عبد الرحمن محمد الدقس  -  يزيد فايز رفيق شاهين  -  يوسف جمال احمد يونس  -  يوسف محمود هديب هديب "]
[10,{"$f":"tpcs!B16","v":"كتابة التنوين  "}," -  ابراهيم جمال سناجرة  -  ابراهيم قاسم ابراهيم ابو رواع  -  احمد هاني محمد الجبارات  -  ادم وجدي اسماعيل شعافين  -  المعتصم مصطفى محمد الحسيني  -  جواد اسامة نواف الراعي  -  جواد خالد سلامة ابو زيتون  -  حمزة ابراهيم علي ابو ورده  -  حمزة ياسر سليمان ابو صالح  -  خلف علي احمد ابو ديه  -  راشد محمد احمد العيسه  -  سند علي محمد الجدعان  -  صهيب جمعة حسين بطاح  -  طارق ربيع انور صبح  -  عبد الرحمن محمد جميل ياسين  -  عبد المالك علي محمد ابو ناموس  -  عبدالله مجدي عايش سراديح  -  عمار باسم طافش شاويش  -  غسان محمد سميح الدبس  -  قيس محمد راغب عرار  -  كرم علي عوده الذيابات  -  لؤي سلطان ذياب الربيعي  -  ليث \"محي الدين\" شحادة الطلاع  -  مؤيد علاء عبدالله عبدالسميع حمادة  -  محمد خضر محمد ابو حمده  -  محمد سلمان علي ابو كاشف  -  محمد شريف سليمان سلامه  -  محمود عيسى حسن عواد  -  مصطفى رائد مصطفى غانم  -  مهند محمد محمود وشاح  -  مهند نضال ابراهيم شحاده  -  موسى علاء موسى رباع  -  وسيم يحيى ابراهيم الراعي  -  يزيد عبد الرحمن محمد الدقس  -  يزيد فايز رفيق شاهين  -  يوسف جمال احمد يونس  -  يوسف محمود هديب هديب "]
[11,{"$f":"tpcs!B17","v":"كتابة الشدة "}," -  ابراهيم جمال سناجرة  -  احمد هاني محمد الجبارات  -  تيم عبدالله \"عزات فريد\" ابو حديد  -  جواد اسامة نواف الراعي  -  جواد خالد سلامة ابو زيتون  -  سند علي محمد الجدعان  -  صهيب جمعة حسين بطاح  -  طارق ربيع انور صبح  -  عبد الرحمن محمد جميل ياسين  -  عبد القادر وليد محمد ابو اسعيد  -  عبد المالك علي محمد ابو ناموس  -  عبدالله مجدي عايش سراديح  -  غسان محمد سميح الدبس  -  قيس محمد راغب عرار  -  كرم علي عوده الذيابات  -  لؤي سلطان ذياب الربيعي  -  ليث \"محي الدين\" شحادة الطلاع  -  مؤيد علاء عبدالله عبدالسميع حمادة  -  محمد سلمان علي ابو كاشف  -  محمود عيسى حسن عواد  -  مصطفى رائد مصطفى غانم  -  مهند محمد محمود وشاح  -  مهند نضال ابراهيم شحاده  -  موسى علاء موسى رباع  -  وسيم يحيى ابراهيم الراعي  -  يزيد عبد الرحمن محمد الدقس  -  يزيد فايز رفيق شاهين  -  يوسف جمال احمد يونس  -  يوسف محمود هديب هديب "]
[12,{"$f":"tpcs!B18","v":"صياغة الاستفهام"}," -  ادم بسام حلمي حسين  -  اصيل خليل راتب حميدان  -  المعتصم مصطفى محمد الحسيني  -  جاد مصطفى فرج ابو الفول  -  جواد اسامة نواف الراعي  -  جواد خالد سلامة ابو زيتون  -  حمزة ابراهيم علي ابو ورده  -  حمزة ياسر سليمان ابو صالح  -  خلف علي احمد ابو ديه  -  صهيب جمعة حسين بطاح  -  طارق ربيع انور صبح  -  عبد الرحمن محمد جميل ياسين  -  عبد المالك علي محمد ابو ناموس  -  عبدالله مجدي عايش سراديح  -  عمار باسم طافش شاويش  -  غسان محمد سميح الدبس  -  قيس محمد راغب عرار  -  كرم علي عوده الذيابات  -  لؤي سلطان ذياب الربيعي  -  ليث \"محي الدين\" شحادة الطلاع  -  مؤيد علاء عبدالله عبدالسميع حمادة  -  محمد سلمان علي ابو كاشف  -  محمود عيسى حسن عواد  -  مصطفى رائد مصطفى غانم  -  مهند محمد محمود وشاح  -  مهند نضال ابراهيم شحاده  -  موسى علاء موسى رباع  -  وسيم يحيى ابراهيم الراعي  -  يزيد عبد الرحمن محمد الدقس  -  يزيد فايز رفيق شاهين  -  يوسف جمال احمد يونس  -  يوسف محمود هديب هديب "]
[13,{"$f":"tpcs!B19","v":"التمييز لبن همزتا الوصل والقطع "}," -  ابراهيم جمال سناجرة  -  احمد هاني محمد الجبارات  -  ادم بسام حلمي حسين  -  ادم وجدي اسماعيل شعافين  -  المعتصم مصطفى محمد الحسيني  -  جواد اسامة نواف الراعي  -  جواد خالد سلامة ابو زيتون  -  حمزة ابراهيم علي ابو ورده  -  حمزة ياسر سليمان ابو صالح  -  راشد محمد احمد العيسه  -  صهيب جمعة حسين بطاح  -  طارق ربيع انور صبح  -  عبد الرحمن محمد جميل ياسين  -  عبد القادر وليد محمد ابو اسعيد  -  عبد المالك علي محمد ابو ناموس  -  عبدالله مجدي عايش سراديح  -  غسان محمد سميح الدبس  -  قيس محمد راغب عرار  -  كرم علي عوده الذيابات  -  لؤي سلطان ذياب الربيعي  -  ليث \"محي الدين\" شحادة الطلاع  -  مؤيد علاء عبدالله عبدالسميع حمادة  -  محمد سلمان علي ابو كاشف  -  محمود عيسى حسن عواد  -  مصطفى رائد مصطفى غانم  -  مهند محمد محمود وشاح  -  مهند نضال ابراهيم شحاده  -  موسى علاء موسى رباع  -  وسيم يحيى ابراهيم الراعي  -  يزيد عبد الرحمن محمد الدقس  -  يزيد فايز رفيق شاهين  -  يوسف جمال احمد يونس  -  يوسف محمود هديب هديب "]
[14,{"$f":"tpcs!B20","v":"التمييز بين التاء المربوطة والتاء المبسوطة "}," -  احمد هاني محمد الجبارات  -  ادم بسام حلمي حسين  -  ادم وجدي اسماعيل شعافين  -  تيم عبدالله \"عزات فريد\" ابو حديد  -  جواد اسامة نواف الراعي  -  جواد خالد سلامة ابو زيتون  -  حمزة ابراهيم علي ابو ورده  -  حمزة ياسر سليمان ابو صالح  -  خلف علي احمد ابو ديه  -  صهيب جمعة حسين بطاح  -  طارق ربيع انور صبح  -  عبد الرحمن محمد جميل ياسين  -  عبد المالك علي محمد ابو ناموس  -  عبدالله مجدي عايش سراديح  -  عمار باسم طافش شاويش  -  غسان محمد سميح الدبس  -  قيس محمد راغب عرار  -  لؤي سلطان ذياب الربيعي  -  ليث \"محي الدين\" شحادة الطلاع  -  محمد سلمان علي ابو كاشف  -  محمود عيسى حسن عواد  -  مهند محمد محمود وشاح  -  مهند نضال ابراهيم شحاده  -  موسى علاء موسى رباع  -  وسيم يحيى ابراهيم الراعي  -  يزيد عبد الرحمن محمد الدقس  -  يزيد فايز رفيق شاهين  -  يوسف جمال احمد يونس  -  يوسف محمود هديب هديب "]
[15,{"$f":"tpcs!B21","v":"صياغة الجمع والمفرد"}," -  ابراهيم جمال سناجرة  -  احمد هاني محمد الجبارات  -  ادم بسام حلمي حسين  -  المعتصم مصطفى محمد الحسيني  -  جواد اسامة نواف الراعي  -  جواد خالد سلامة ابو زيتون  -  حمزة ابراهيم علي ابو ورده  -  صهيب جمعة حسين بطاح  -  طارق ربيع انور صبح  -  عبد الرحمن محمد جميل ياسين  -  عبد المالك علي محمد ابو ناموس  -  عبدالله مجدي عايش سراديح  -  غسان محمد سميح الدبس  -  قيس محمد راغب عرار  -  كرم علي عوده الذيابات  -  لؤي سلطان ذياب الربيعي  -  ليث \"محي الدين\" شحادة الطلاع  -  مؤيد علاء عبدالله عبدالسميع حمادة  -  محمد سلمان علي ابو كاشف  -  محمود عيسى حسن عواد  -  مصطفى رائد مصطفى غانم  -  مهند محمد محمود وشاح  -  مهند نضال ابراهيم شحاده  -  موسى علاء موسى رباع  -  وسيم يحيى ابراهيم الراعي  -  يزيد عبد الرحمن محمد الدقس  -  يزيد فايز رفيق شاهين  -  يوسف جمال احمد يونس  -  يوسف محمود هديب هديب "]
[16,{"$f":"tpcs!B22","v":"ترتيب الكلمات المبعثرة لتؤلف جملة مفيدة"}," -  ابراهيم جمال سناجرة  -  احمد هاني محمد الجبارات  -  ادم بسام حلمي حسين  -  المعتصم مصطفى محمد الحسيني  -  تيم عبدالله \"عزات فريد\" ابو حديد  -  جواد اسامة نواف الراعي  -  جواد خالد سلامة ابو زيتون  -  حمزة ابراهيم علي ابو ورده  -  حمزة ياسر سليمان ابو صالح  -  خلف علي احمد ابو ديه  -  صهيب جمعة حسين بطاح  -  طارق ربيع انور صبح  -  عبد الرحمن محمد جميل ياسين  -  عبد المالك علي محمد ابو ناموس  -  عبدالله مجدي عايش سراديح  -  عمار باسم طافش شاويش  -  غسان محمد سميح الدبس  -  قيس محمد راغب عرار  -  كرم علي عوده الذيابات  -  لؤي سلطان ذياب الربيعي  -  ليث \"محي الدين\" شحادة الطلاع  -  مؤيد علاء عبدالله عبدالسميع حمادة  -  محمد سلمان علي ابو كاشف  -  محمود عيسى حسن عواد  -  مصطفى رائد مصطفى غانم  -  مهند محمد محمود وشاح  -  مهند نضال ابراهيم شحاده  -  موسى علاء موسى رباع  -  وسيم يحيى ابراهيم الراعي  -  يزيد عبد الرحمن محمد الدقس  -  يزيد فايز رفيق شاهين  -  يوسف جمال احمد يونس  -  يوسف محمود هديب هديب "]
[17,{"$f":"tpcs!B23","v":0}]
[18,{"$f":"tpcs!B24","v":0}]
[19,{"$f":"tpcs!B25","v":0}]
[20,{"$f":"tpcs!B26","v":0}]
[21,{"$f":"tpcs!B27","v":0}]
[22,{"$f":"tpcs!B28","v":0}]
[23,{"$f":"tpcs!B29","v":0}]
[24,{"$f":"tpcs!B30","v":0}]
[25,{"$f":"tpcs!B31","v":0}]
[26,{"$f":"tpcs!H7","v":0}]
[27,{"$f":"tpcs!H8","v":0}]
[28,{"$f":"tpcs!H9","v":0}]
[29,{"$f":"tpcs!H10","v":0}]
[30,{"$f":"tpcs!H11","v":0}]
[31,{"$f":"tpcs!H12","v":0}]
[32,{"$f":"tpcs!H13","v":0}]
[33,{"$f":"tpcs!H14","v":0}]
[34,{"$f":"tpcs!H15","v":0}]
[35,{"$f":"tpcs!H16","v":0}]
[36,{"$f":"tpcs!H17","v":0}]
[37,{"$f":"tpcs!H18","v":0}]
[38,{"$f":"tpcs!H19","v":0}]
[39,{"$f":"tpcs!H20","v":0}]
[40,{"$f":"tpcs!H21","v":0}]
[41,{"$f":"tpcs!H22","v":0}]
[42,{"$f":"tpcs!H23","v":0}]
[43,{"$f":"tpcs!H24","v":0}]
[44,{"$f":"tpcs!H25","v":0}]
[45,{"$f":"tpcs!H26","v":0}]
[46,{"$f":"tpcs!H27","v":0}]
[47,{"$f":"tpcs!H28","v":0}]
[48,{"$f":"tpcs!H29","v":0}]
[49,{"$f":"tpcs!H30","v":0}]
[50,{"$f":"tpcs!H31","v":0}]

{"sheet":"sts","index":3,"n_rows":58,"n_cols":55,"rows_kept":58,"cut":false,"hidden":false,"merged":[[7,31,7,32],[8,31,8,32],[58,0,58,1],[59,0,59,1],[7,16,7,17],[8,16,8,17],[5,42,5,45],[5,46,5,50],[5,0,5,1],[5,2,5,12],[1,0,1,2],[2,0,2,2],[4,0,4,2],[3,0,3,2]]}
[]
["وكالة الغوث الدولية"]
["دائرة التربيـة والتعليـم"]
["منطقـة الزرقـاء "]
["تحليل نتائج الاختبار التشخيصي "]
["المـــدرسة :",null,{"$f":"tpcs!C5","v":0}]
[null,"الصــــف :",{"$f":"tpcs!I5","v":"الرابع  "}]
["م","اسم الطالب ( مقطعين)","نقاط الضعف  ",null,null,null,null,null,null,null,null,null,null,null,null,null,null,null,null,null,null,null,null,null,null,null,null,null,null,null,null,null,null,null,null,null,null,null,null,null,null,null,null,null,null,null,null,null,null,null,null,null,null,null,{"$f":"tpcs!I4","v":0}]
[1,{"$f":"anyls!B9","v":" ابراهيم جمال سناجرة "}]
[2,{"$f":"anyls!B10","v":" ابراهيم قاسم ابراهيم ابو رواع "}]
[3,{"$f":"anyls!B11","v":" احمد هاني محمد الجبارات "}]
[4,{"$f":"anyls!B12","v":" ادم بسام حلمي حسين "}]
[5,{"$f":"anyls!B13","v":" ادم وجدي اسماعيل شعافين "}]
[6,{"$f":"anyls!B14","v":" اصيل خليل راتب حميدان "}]
[7,{"$f":"anyls!B15","v":" المعتصم مصطفى محمد الحسيني "}]
[8,{"$f":"anyls!B16","v":" تيم عبدالله \"عزات فريد\" ابو حديد "}]
[9,{"$f":"anyls!B17","v":" جاد مصطفى فرج ابو الفول "}]
[10,{"$f":"anyls!B18","v":" جواد اسامة نواف الراعي "}]
[11,{"$f":"anyls!B19","v":" جواد خالد سلامة ابو زيتون "}]
[12,{"$f":"anyls!B20","v":" حمزة ابراهيم علي ابو ورده "}]
[13,{"$f":"anyls!B21","v":" حمزة احمد محمود غنايم "}]
[14,{"$f":"anyls!B22","v":" حمزة ياسر سليمان ابو صالح "}]
[15,{"$f":"anyls!B23","v":" خلف علي احمد ابو ديه "}]
[16,{"$f":"anyls!B24","v":" راشد محمد احمد العيسه "}]
[17,{"$f":"anyls!B25","v":" سند علي محمد الجدعان "}]
[18,{"$f":"anyls!B26","v":" \"صلاح الدين\" وليد حسن الاعرج "}]
[19,{"$f":"anyls!B27","v":" صهيب جمعة حسين بطاح "}]
[20,{"$f":"anyls!B28","v":" طارق ربيع انور صبح "}]
[21,{"$f":"anyls!B29","v":" عبد الرحمن علي ابراهيم نشوان "}]
[22,{"$f":"anyls!B30","v":" عبد الرحمن محمد جميل ياسين "}]
[23,{"$f":"anyls!B31","v":" عبد القادر وليد محمد ابو اسعيد "}]
[24,{"$f":"anyls!B32","v":" عبد المالك علي محمد ابو ناموس "}]
[25,{"$f":"anyls!B33","v":" عبدالله مجدي عايش سراديح "}]
[26,{"$f":"anyls!B34","v":" \"عز الدين\" اياد محمد الدقس "}]
[27,{"$f":"anyls!B35","v":" عمار باسم طافش شاويش "}]
[28,{"$f":"anyls!B36","v":" غسان محمد سميح الدبس "}]
[29,{"$f":"anyls!B37","v":" قيس محمد راغب عرار "}]
[30,{"$f":"anyls!B38","v":" كرم علي عوده الذيابات "}]
[31,{"$f":"anyls!B39","v":" لؤي سلطان ذياب الربيعي "}]
[32,{"$f":"anyls!B40","v":" ليث \"محي الدين\" شحادة الطلاع "}]
[33,{"$f":"anyls!B41","v":" مؤيد علاء عبدالله عبدالسميع حمادة "}]
[34,{"$f":"anyls!B42","v":" محمد خضر محمد ابو حمده "}]
[35,{"$f":"anyls!B43","v":" محمد سلمان علي ابو كاشف "}]
[36,{"$f":"anyls!B44","v":" محمد شريف سليمان سلامه "}]
[37,{"$f":"anyls!B45","v":" محمد عبد القادر محمد الدقس "}]
[38,{"$f":"anyls!B46","v":" محمد فراس محمود عقل "}]
[39,{"$f":"anyls!B47","v":" محمد مراد محمد الوحيدي "}]
[40,{"$f":"anyls!B48","v":" محمود عيسى حسن عواد "}]
[41,{"$f":"anyls!B49","v":" مصطفى رائد مصطفى غانم "}]
[42,{"$f":"anyls!B50","v":" مهند محمد محمود وشاح "}]
[43,{"$f":"anyls!B51","v":" مهند نضال ابراهيم شحاده "}]
[44,{"$f":"anyls!B52","v":" موسى علاء موسى رباع "}]
[45,{"$f":"anyls!B53","v":" وسيم يحيى ابراهيم الراعي "}]
[46,{"$f":"anyls!B54","v":" يزيد عبد الرحمن محمد الدقس "}]
[47,{"$f":"anyls!B55","v":" يزيد فايز رفيق شاهين "}]
[48,{"$f":"anyls!B56","v":" يوسف جمال احمد يونس "}]
[49,{"$f":"anyls!B57","v":" يوسف محمود هديب هديب "}]
[50,{"$f":"anyls!B58","v":0}]